[Event "*** Titled Tuesday 3|2 Blitz"]
[Site "Chess.com"]
[Date "2017.06.06"]
[Round "3"]
[White "TenisMaster"]
[Black "Margency"]
[Result "1-0"]
[WhiteElo "2666"]
[BlackElo "2543"]
[TimeControl "180+2"]
[EndTime "14:27:22 PDT"]
[Termination "TenisMaster won by resignation"]

1. e4 {[%clk 0:03:02]} 1... d5 {[%clk 0:02:58.2]} 2. exd5 {[%clk 0:02:58.4]}
2... Qxd5 {[%clk 0:03:00.1]} 3. Nc3 {[%clk 0:02:56.7]} 3... Qd6 {[%clk
0:03:01.2]} 4. d4 {[%clk 0:02:52.6]} 4... Nf6 {[%clk 0:03:01.9]} 5. Nf3 {[%clk
0:02:51.5]} 5... c6 {[%clk 0:03:02.7]} 6. h3 {[%clk 0:02:35.3]} 6... Bf5 {[%clk
0:03:02.4]} 7. Bd3 {[%clk 0:02:31.5]} 7... Bg6 {[%clk 0:03:02.6]} 8. O-O {[%clk
0:02:31.1]} 8... Nbd7 {[%clk 0:03:03.1]} 9. Re1 {[%clk 0:02:30.9]} 9... e6
{[%clk 0:03:04]} 10. Bg5 {[%clk 0:02:12.5]} 10... Be7 {[%clk 0:03:04.5]} 11. a3
{[%clk 0:02:02.9]} 11... O-O {[%clk 0:03:04]} 12. Ne5 {[%clk 0:01:51.4]} 12...
Bxd3 {[%clk 0:02:57.3]} 13. Qxd3 {[%clk 0:01:51.4]} 13... Nxe5 {[%clk
0:02:53.9]} 14. Rxe5 {[%clk 0:01:47]} 14... Rad8 {[%clk 0:02:51.1]} 15. Rd1
{[%clk 0:01:43.6]} 15... h6 {[%clk 0:02:23.3]} 16. Bf4 {[%clk 0:01:37.8]} 16...
Qd7 {[%clk 0:02:23.3]} 17. Qg3 {[%clk 0:01:34.3]} 17... Kh7 {[%clk 0:02:14.6]}
18. Qf3 {[%clk 0:01:26.1]} 18... Nd5 {[%clk 0:02:11.2]} 19. Nxd5 {[%clk
0:01:25]} 19... cxd5 {[%clk 0:02:11.7]} 20. Re2 {[%clk 0:01:20.2]} 20... Rc8
{[%clk 0:02:11]} 21. c3 {[%clk 0:01:21.1]} 21... b5 {[%clk 0:02:11.5]} 22. Be5
{[%clk 0:01:21.7]} 22... f6 {[%clk 0:02:07.7]} 23. Bh2 {[%clk 0:01:21.3]} 23...
a6 {[%clk 0:02:06.7]} 24. Rde1 {[%clk 0:01:21.9]} 24... Rc6 {[%clk 0:02:07.5]}
25. Qg4 {[%clk 0:01:22.2]} 25... f5 {[%clk 0:02:06.4]} 26. Qf3 {[%clk
0:01:23.1]} 26... Rf6 {[%clk 0:01:59.2]} 27. Be5 {[%clk 0:01:23.3]} 27... Rg6
{[%clk 0:02:00.2]} 28. Kh1 {[%clk 0:01:21.6]} 28... a5 {[%clk 0:02:00.5]} 29.
Qd3 {[%clk 0:01:21.8]} 29... b4 {[%clk 0:01:58.2]} 30. cxb4 {[%clk 0:01:20.6]}
30... axb4 {[%clk 0:01:59]} 31. a4 {[%clk 0:01:21.8]} 31... Rc4 {[%clk
0:01:58.6]} 32. Ra1 {[%clk 0:01:21]} 32... Bd6 {[%clk 0:01:33]} 33. a5 {[%clk
0:01:17.1]} 33... Bxe5 {[%clk 0:01:33.3]} 34. Rxe5 {[%clk 0:01:12.5]} 34... Qa7
{[%clk 0:01:30.8]} 35. a6 {[%clk 0:01:06.7]} 35... Rxd4 {[%clk 0:01:25.1]} 36.
Qe3 {[%clk 0:01:06.1]} 36... f4 {[%clk 0:01:25.7]} 37. Qe2 {[%clk 0:01:06.6]}
37... Rc4 {[%clk 0:01:22.3]} 38. Rxe6 {[%clk 0:01:04.5]} 38... f3 {[%clk
0:01:19.3]} 39. Qd3 {[%clk 0:00:50.8]} 39... fxg2+ {[%clk 0:01:07.4]} 40. Kg1
{[%clk 0:00:50.9]} 40... Re4 {[%clk 0:01:01.7]} 41. Rxe4 {[%clk 0:00:36.2]}
41... dxe4 {[%clk 0:01:01.9]} 42. Qxe4 {[%clk 0:00:37.7]} 42... b3 {[%clk
0:01:01.4]} 43. h4 {[%clk 0:00:30.6]} 43... h5 {[%clk 0:01:02.2]} 44. Qb7 {[%clk
0:00:18.9]} 44... Qxb7 {[%clk 0:00:59.2]} 45. axb7 {[%clk 0:00:20]} 45... Rb6
{[%clk 0:01:00.8]} 46. Ra7 {[%clk 0:00:21.1]} 46... Kg6 {[%clk 0:01:00.6]} 47.
Ra6 {[%clk 0:00:21.7]} 47... Rxa6 {[%clk 0:00:56.4]} 48. b8=Q {[%clk 0:00:22.7]}
48... Rf6 {[%clk 0:00:53.9]} 49. Qxb3 {[%clk 0:00:22.4]} 49... Kh6 {[%clk
0:00:55]} 50. Qe3+ {[%clk 0:00:22.7]} 50... Kh7 {[%clk 0:00:55.9]} 51. Kxg2
{[%clk 0:00:23.6]} 51... Rg6+ {[%clk 0:00:56.9]} 52. Kh3 {[%clk 0:00:24.4]}
52... Rg4 {[%clk 0:00:56]} 53. Qd3+ {[%clk 0:00:24]} 53... g6 {[%clk 0:00:56.6]}
54. Qd6 {[%clk 0:00:23.8]} 54... Rg1 {[%clk 0:00:55.1]} 55. b4 {[%clk
0:00:23.8]} 55... Rb1 {[%clk 0:00:55.2]} 56. b5 {[%clk 0:00:24]} 56... Kh6
{[%clk 0:00:55.2]} 57. b6 {[%clk 0:00:24.3]} 57... Rb3+ {[%clk 0:00:55.8]} 58.
Kg2 {[%clk 0:00:24.5]} 1-0

[Event "*** Titled Tuesday 3|2 Blitz"]
[Site "Chess.com"]
[Date "2017.06.06"]
[Round "3"]
[White "viggi38"]
[Black "dtn70"]
[Result "1-0"]
[WhiteElo "2159"]
[BlackElo "2216"]
[TimeControl "180+2"]
[EndTime "14:27:24 PDT"]
[Termination "viggi38 won on time"]

1. d4 {[%clk 0:03:01.8]} 1... d6 {[%clk 0:03:00.5]} 2. e4 {[%clk 0:03:01.4]}
2... Nf6 {[%clk 0:03:00.9]} 3. Bc4 {[%clk 0:03:02.2]} 3... Nbd7 {[%clk
0:02:48.9]} 4. Qe2 {[%clk 0:02:15.2]} 4... e5 {[%clk 0:02:42.6]} 5. Nf3 {[%clk
0:02:15.3]} 5... h6 {[%clk 0:02:33.8]} 6. Nc3 {[%clk 0:01:36.4]} 6... Be7 {[%clk
0:02:33.7]} 7. Bd2 {[%clk 0:01:11.7]} 7... c6 {[%clk 0:02:33.7]} 8. h3 {[%clk
0:01:09.2]} 8... Qc7 {[%clk 0:02:34.2]} 9. d5 {[%clk 0:01:07.4]} 9... O-O {[%clk
0:02:27.8]} 10. Nh4 {[%clk 0:01:04.5]} 10... Nb6 {[%clk 0:02:20.5]} 11. Bb3
{[%clk 0:01:03.9]} 11... cxd5 {[%clk 0:02:17.5]} 12. exd5 {[%clk 0:01:02.6]}
12... Re8 {[%clk 0:02:09.1]} 13. Nf3 {[%clk 0:00:56.5]} 13... Bf8 {[%clk
0:02:07.8]} 14. Be3 {[%clk 0:00:55.8]} 14... Bd7 {[%clk 0:02:02.2]} 15. g4
{[%clk 0:00:52.4]} 15... Nh7 {[%clk 0:01:41.1]} 16. Nd2 {[%clk 0:00:44.7]} 16...
a5 {[%clk 0:01:29.6]} 17. a4 {[%clk 0:00:43.5]} 17... Be7 {[%clk 0:01:19.9]} 18.
h4 {[%clk 0:00:41.7]} 18... f5 {[%clk 0:01:03.4]} 19. gxf5 {[%clk 0:00:34.4]}
19... Bxf5 {[%clk 0:01:02.6]} 20. Nb5 {[%clk 0:00:28.7]} 20... Qd8 {[%clk
0:01:01]} 21. Rg1 {[%clk 0:00:26.2]} 21... Kh8 {[%clk 0:00:59.7]} 22. O-O-O
{[%clk 0:00:22.8]} 22... Bxh4 {[%clk 0:00:56.3]} 23. Qh5 {[%clk 0:00:21]} 23...
Rf8 {[%clk 0:00:42.8]} 24. Bxb6 {[%clk 0:00:19.5]} 24... Qxb6 {[%clk 0:00:39.3]}
25. Qxh4 {[%clk 0:00:20.5]} 25... Rac8 {[%clk 0:00:34.2]} 26. Nc4 {[%clk
0:00:21]} 26... Qc5 {[%clk 0:00:31]} 27. Qg3 {[%clk 0:00:21.5]} 27... Ng5 {[%clk
0:00:29.1]} 28. Qe3 {[%clk 0:00:22.1]} 28... Qxe3+ {[%clk 0:00:25]} 29. fxe3
{[%clk 0:00:24]} 29... Nf3 {[%clk 0:00:15.9]} 30. Rgf1 {[%clk 0:00:23.9]} 30...
Bg4 {[%clk 0:00:16.4]} 31. Nbxd6 {[%clk 0:00:21.6]} 31... Rb8 {[%clk 0:00:16.3]}
32. Rd3 {[%clk 0:00:21.2]} 32... e4 {[%clk 0:00:12.4]} 33. Nxe4 {[%clk
0:00:20.7]} 33... Nh2 {[%clk 0:00:12.1]} 34. Rxf8+ {[%clk 0:00:20.4]} 34... Rxf8
{[%clk 0:00:12.5]} 35. Ned2 {[%clk 0:00:19.4]} 35... Be2 {[%clk 0:00:11.3]} 36.
Rd4 {[%clk 0:00:19.8]} 36... Nf3 {[%clk 0:00:11.6]} 37. Rf4 {[%clk 0:00:20.3]}
37... Rxf4 {[%clk 0:00:10]} 38. exf4 {[%clk 0:00:21.1]} 38... Nd4 {[%clk
0:00:10.5]} 39. d6 {[%clk 0:00:20.6]} 39... Nc6 {[%clk 0:00:10.3]} 40. Ne5
{[%clk 0:00:20.7]} 40... Nd8 {[%clk 0:00:10.4]} 41. d7 {[%clk 0:00:20.8]} 41...
Bh5 {[%clk 0:00:09.5]} 42. Ne4 {[%clk 0:00:19.4]} 42... g5 {[%clk 0:00:07]} 43.
fxg5 {[%clk 0:00:19.1]} 43... hxg5 {[%clk 0:00:08]} 44. Nxg5 {[%clk 0:00:21]}
44... Kg7 {[%clk 0:00:07.2]} 45. Ne6+ {[%clk 0:00:22.3]} 45... Nxe6 {[%clk
0:00:07]} 46. Bxe6 {[%clk 0:00:24.2]} 46... Kf6 {[%clk 0:00:08.2]} 47. d8=Q+
{[%clk 0:00:24.5]} 47... Kxe5 {[%clk 0:00:02.1]} 48. Qg5+ {[%clk 0:00:24.7]}
48... Kxe6 {[%clk 0:00:02.7]} 49. Qxh5 {[%clk 0:00:26.6]} 1-0

[Event "*** Titled Tuesday 3|2 Blitz"]
[Site "Chess.com"]
[Date "2017.06.06"]
[Round "3"]
[White "Hikaru"]
[Black "maciek_92"]
[Result "1/2-1/2"]
[WhiteElo "2907"]
[BlackElo "2534"]
[TimeControl "180+2"]
[EndTime "14:27:34 PDT"]
[Termination "Game drawn by stalemate"]

1. b3 {[%clk 0:03:02]} 1... Nf6 {[%clk 0:02:59.8]} 2. Bb2 {[%clk 0:03:03.9]}
2... e6 {[%clk 0:03:01.2]} 3. e3 {[%clk 0:03:05.8]} 3... b6 {[%clk 0:03:02.4]}
4. Nf3 {[%clk 0:03:07.7]} 4... Bb7 {[%clk 0:03:03.7]} 5. d4 {[%clk 0:03:09]}
5... c5 {[%clk 0:03:04.4]} 6. c4 {[%clk 0:03:08]} 6... Be7 {[%clk 0:03:02.3]} 7.
dxc5 {[%clk 0:03:03.5]} 7... bxc5 {[%clk 0:03:02.5]} 8. Bd3 {[%clk 0:03:02.3]}
8... O-O {[%clk 0:03:02.1]} 9. O-O {[%clk 0:03:02.7]} 9... d6 {[%clk 0:03:03.1]}
10. Nbd2 {[%clk 0:03:01.1]} 10... Nbd7 {[%clk 0:02:59.9]} 11. Qc2 {[%clk
0:03:00.7]} 11... Qc7 {[%clk 0:02:47.2]} 12. Rad1 {[%clk 0:03:00.6]} 12... Rad8
{[%clk 0:02:36.7]} 13. Ne4 {[%clk 0:03:00]} 13... h6 {[%clk 0:02:26.9]} 14. Rd2
{[%clk 0:02:55.8]} 14... Bc6 {[%clk 0:02:16.9]} 15. Nxf6+ {[%clk 0:02:50.9]}
15... Nxf6 {[%clk 0:02:18.8]} 16. Bxf6 {[%clk 0:02:49.3]} 16... Bxf6 {[%clk
0:02:18.8]} 17. Bh7+ {[%clk 0:02:49.6]} 17... Kh8 {[%clk 0:02:19.4]} 18. Be4
{[%clk 0:02:51.5]} 18... Bd7 {[%clk 0:02:12.6]} 19. Rfd1 {[%clk 0:02:50]} 19...
Bc8 {[%clk 0:02:14]} 20. Ne1 {[%clk 0:02:40.8]} 20... g5 {[%clk 0:02:00]} 21.
Nd3 {[%clk 0:02:40.5]} 21... a5 {[%clk 0:01:51.3]} 22. Nb2 {[%clk 0:02:39]}
22... Bg7 {[%clk 0:01:51.6]} 23. Na4 {[%clk 0:02:39.5]} 23... f5 {[%clk
0:01:53]} 24. Bf3 {[%clk 0:02:40]} 24... Bd7 {[%clk 0:01:02.3]} 25. Nc3 {[%clk
0:02:37]} 25... Be8 {[%clk 0:00:58]} 26. g4 {[%clk 0:02:30.8]} 26... fxg4 {[%clk
0:00:41.9]} 27. Bxg4 {[%clk 0:02:30.7]} 27... Be5 {[%clk 0:00:39.5]} 28. Bxe6
{[%clk 0:02:26.1]} 28... Qg7 {[%clk 0:00:38.5]} 29. Nb5 {[%clk 0:02:12.8]} 29...
g4 {[%clk 0:00:24.2]} 30. Nxd6 {[%clk 0:02:08.4]} 30... Qf6 {[%clk 0:00:18.5]}
31. Qf5 {[%clk 0:01:48.9]} 31... Bxh2+ {[%clk 0:00:13.1]} 32. Kg2 {[%clk
0:01:48.8]} 32... Bc6+ {[%clk 0:00:13.2]} 33. e4 {[%clk 0:01:45.1]} 33... Qh4
{[%clk 0:00:10.7]} 34. Nf7+ {[%clk 0:01:42.4]} 34... Kg7 {[%clk 0:00:11.7]} 35.
Qxg4+ {[%clk 0:01:36.8]} 35... Qxg4+ {[%clk 0:00:12.8]} 36. Bxg4 {[%clk
0:01:38.7]} 36... Rxd2 {[%clk 0:00:13.7]} 37. Rxd2 {[%clk 0:01:40.6]} 37... Bf4
{[%clk 0:00:13.6]} 38. Nd8 {[%clk 0:01:38.8]} 38... Bxe4+ {[%clk 0:00:14.3]} 39.
f3 {[%clk 0:01:39.8]} 39... Bxd2 {[%clk 0:00:15.6]} 40. Ne6+ {[%clk 0:01:40.7]}
40... Kf7 {[%clk 0:00:15.1]} 41. Nxf8 {[%clk 0:01:41.4]} 41... Bb1 {[%clk
0:00:16.1]} 42. Nd7 {[%clk 0:01:41.1]} 42... Bxa2 {[%clk 0:00:11.3]} 43. Nxc5
{[%clk 0:01:42]} 43... Bb4 {[%clk 0:00:11.9]} 44. Na6 {[%clk 0:01:35.2]} 44...
Bxb3 {[%clk 0:00:12.8]} 45. c5 {[%clk 0:01:35.9]} 45... Bd5 {[%clk 0:00:10.2]}
46. Bd7 {[%clk 0:01:32.9]} 46... Ke7 {[%clk 0:00:10.7]} 47. Ba4 {[%clk
0:01:33.4]} 47... Bc4 {[%clk 0:00:09.8]} 48. Nb8 {[%clk 0:01:18.9]} 48... Bd5
{[%clk 0:00:07.8]} 49. Nc6+ {[%clk 0:01:20.8]} 49... Bxc6 {[%clk 0:00:07.8]} 50.
Bxc6 {[%clk 0:01:22.7]} 50... Bxc5 {[%clk 0:00:09.7]} 51. Ba4 {[%clk 0:01:24.3]}
51... Be3 {[%clk 0:00:10.4]} 52. Bb5 {[%clk 0:01:26.2]} 52... Bf4 {[%clk
0:00:11.7]} 53. Ba4 {[%clk 0:01:28.1]} 53... Kf6 {[%clk 0:00:13]} 54. Bb5 {[%clk
0:01:30]} 54... Ke5 {[%clk 0:00:13.9]} 55. Ba4 {[%clk 0:01:31.9]} 55... Kd4
{[%clk 0:00:15.3]} 56. Bb5 {[%clk 0:01:33.8]} 56... Kc5 {[%clk 0:00:16.4]} 57.
Ba4 {[%clk 0:01:35.7]} 57... Kb4 {[%clk 0:00:18]} 58. Be8 {[%clk 0:01:37.4]}
58... a4 {[%clk 0:00:18.9]} 59. Bxa4 {[%clk 0:01:38.6]} 59... Kxa4 {[%clk
0:00:20.8]} 60. Kh1 {[%clk 0:01:40.5]} 60... Kb4 {[%clk 0:00:22.1]} 61. Kg2
{[%clk 0:01:42.4]} 61... Kc3 {[%clk 0:00:24]} 62. Kh1 {[%clk 0:01:44.3]} 62...
Kd3 {[%clk 0:00:25.9]} 63. Kg2 {[%clk 0:01:46.1]} 63... Ke3 {[%clk 0:00:27.8]}
64. Kh1 {[%clk 0:01:48]} 64... Kxf3 {[%clk 0:00:29.2]} 65. Kg1 {[%clk
0:01:48.1]} 65... h5 {[%clk 0:00:31.1]} 66. Kh1 {[%clk 0:01:50]} 66... h4 {[%clk
0:00:33]} 67. Kg1 {[%clk 0:01:50.5]} 67... h3 {[%clk 0:00:34.9]} 68. Kh1 {[%clk
0:01:52.4]} 68... h2 {[%clk 0:00:36.8]} 1/2-1/2

[Event "*** Titled Tuesday 3|2 Blitz"]
[Site "Chess.com"]
[Date "2017.06.06"]
[Round "3"]
[White "Ginger_GM"]
[Black "Spinaltap"]
[Result "0-1"]
[WhiteElo "2419"]
[BlackElo "2514"]
[TimeControl "180+2"]
[EndTime "14:27:35 PDT"]
[Termination "Spinaltap won by resignation"]

1. d4 {[%clk 0:03:02]} 1... d5 {[%clk 0:02:58.6]} 2. c4 {[%clk 0:02:58]} 2... c6
{[%clk 0:02:58.8]} 3. Nc3 {[%clk 0:02:57.7]} 3... Nf6 {[%clk 0:02:59.2]} 4. Nf3
{[%clk 0:02:58.2]} 4... dxc4 {[%clk 0:02:59.4]} 5. e4 {[%clk 0:02:58.2]} 5... b5
{[%clk 0:02:59.2]} 6. e5 {[%clk 0:02:58.6]} 6... Nd5 {[%clk 0:02:59.6]} 7. a4
{[%clk 0:02:59.3]} 7... e6 {[%clk 0:02:48.7]} 8. Ng5 {[%clk 0:02:59]} 8... Bb7
{[%clk 0:02:30.5]} 9. Qh5 {[%clk 0:02:54.7]} 9... g6 {[%clk 0:02:27.5]} 10. Qf3
{[%clk 0:02:52.9]} 10... Qc7 {[%clk 0:02:20.9]} 11. Nge4 {[%clk 0:02:38.5]}
11... Nd7 {[%clk 0:02:17]} 12. Be2 {[%clk 0:01:40]} 12... b4 {[%clk 0:02:10.1]}
13. Nd1 {[%clk 0:01:35.9]} 13... c5 {[%clk 0:02:09.1]} 14. Bxc4 {[%clk
0:01:21.9]} 14... cxd4 {[%clk 0:02:08.3]} 15. Bb5 {[%clk 0:01:22.1]} 15... Bc6
{[%clk 0:01:56.3]} 16. O-O {[%clk 0:00:59.2]} 16... Bxb5 {[%clk 0:01:39.3]} 17.
axb5 {[%clk 0:00:58.1]} 17... Qxe5 {[%clk 0:01:34]} 18. b3 {[%clk 0:00:39.6]}
18... Bg7 {[%clk 0:01:11.7]} 19. Nb2 {[%clk 0:00:36.4]} 19... O-O {[%clk
0:01:10.2]} 20. Nc4 {[%clk 0:00:33.6]} 20... Qf5 {[%clk 0:01:04.4]} 21. Qd3
{[%clk 0:00:23]} 21... Nc3 {[%clk 0:01:02.1]} 22. f3 {[%clk 0:00:21.1]} 22...
Ne5 {[%clk 0:00:55]} 23. Nxe5 {[%clk 0:00:18.5]} 23... Qxe5 {[%clk 0:00:55.7]}
24. Ra5 {[%clk 0:00:18.3]} 24... Qc7 {[%clk 0:00:51]} 25. Ra6 {[%clk 0:00:17]}
25... Rab8 {[%clk 0:00:38.9]} 26. Bg5 {[%clk 0:00:14.9]} 26... f6 {[%clk
0:00:23]} 27. Rc6 {[%clk 0:00:12.2]} 27... Qe7 {[%clk 0:00:21.2]} 28. Bh4 {[%clk
0:00:12.9]} 28... Rfd8 {[%clk 0:00:20.6]} 29. Ra1 {[%clk 0:00:12.8]} 29... Rxb5
{[%clk 0:00:21.5]} 30. Raa6 {[%clk 0:00:12.6]} 30... Rb6 {[%clk 0:00:22.1]} 31.
Raxb6 {[%clk 0:00:11.2]} 31... axb6 {[%clk 0:00:24]} 32. Qc4 {[%clk 0:00:12.8]}
32... Nd5 {[%clk 0:00:23]} 33. Qxd4 {[%clk 0:00:09]} 33... g5 {[%clk 0:00:23.9]}
34. Bg3 {[%clk 0:00:09.5]} 34... f5 {[%clk 0:00:24.9]} 35. Qc4 {[%clk
0:00:07.3]} 35... fxe4 {[%clk 0:00:25.7]} 36. fxe4 {[%clk 0:00:09.2]} 36... Nc3
{[%clk 0:00:23.3]} 37. Rxe6 {[%clk 0:00:08.9]} 37... Qf7 {[%clk 0:00:24.2]} 38.
h3 {[%clk 0:00:09.1]} 38... Rd1+ {[%clk 0:00:21.2]} 39. Kh2 {[%clk 0:00:08.9]}
39... Bd4 {[%clk 0:00:22.1]} 40. Re8+ {[%clk 0:00:04.9]} 40... Kg7 {[%clk
0:00:21.7]} 41. Be5+ {[%clk 0:00:05.9]} 41... Bxe5+ {[%clk 0:00:22.1]} 42. Rxe5
{[%clk 0:00:03.4]} 42... Qxc4 {[%clk 0:00:19.9]} 43. bxc4 {[%clk 0:00:03.2]}
43... h6 {[%clk 0:00:20.9]} 44. Re7+ {[%clk 0:00:03.7]} 44... Kf6 {[%clk
0:00:20]} 45. Rb7 {[%clk 0:00:05.6]} 45... Rd6 {[%clk 0:00:20.3]} 46. Rxb6
{[%clk 0:00:07.5]} 46... Rxb6 {[%clk 0:00:21.1]} 0-1

[Event "*** Titled Tuesday 3|2 Blitz"]
[Site "Chess.com"]
[Date "2017.06.06"]
[Round "3"]
[White "igorkovalenko"]
[Black "Oneofmyturns"]
[Result "1/2-1/2"]
[WhiteElo "2630"]
[BlackElo "2508"]
[TimeControl "180+2"]
[EndTime "14:27:37 PDT"]
[Termination "Game drawn by repetition"]

1. d4 {[%clk 0:03:02]} 1... Nf6 {[%clk 0:03:00.3]} 2. Bf4 {[%clk 0:03:02.6]}
2... e6 {[%clk 0:03:01]} 3. e3 {[%clk 0:03:03.8]} 3... d5 {[%clk 0:03:02.6]} 4.
Bd3 {[%clk 0:03:04.8]} 4... Bd6 {[%clk 0:03:03.9]} 5. Bg3 {[%clk 0:03:05.6]}
5... c5 {[%clk 0:03:05.4]} 6. c3 {[%clk 0:03:06.7]} 6... Nc6 {[%clk 0:03:06.7]}
7. Nd2 {[%clk 0:03:07.4]} 7... O-O {[%clk 0:02:48.8]} 8. Ngf3 {[%clk 0:03:07.4]}
8... b6 {[%clk 0:02:47.3]} 9. Qe2 {[%clk 0:03:07.5]} 9... Bb7 {[%clk 0:02:47]}
10. Rd1 {[%clk 0:03:08.4]} 10... Qc7 {[%clk 0:02:32.1]} 11. e4 {[%clk
0:03:00.7]} 11... dxe4 {[%clk 0:01:56.1]} 12. Nxe4 {[%clk 0:03:02.6]} 12... Nxe4
{[%clk 0:01:56.3]} 13. Qxe4 {[%clk 0:03:04.5]} 13... g6 {[%clk 0:01:56.7]} 14.
dxc5 {[%clk 0:03:02.6]} 14... bxc5 {[%clk 0:01:53.2]} 15. Qh4 {[%clk 0:02:59.1]}
15... Ne5 {[%clk 0:01:25.4]} 16. Be2 {[%clk 0:02:41.4]} 16... Bxf3 {[%clk
0:01:02.9]} 17. gxf3 {[%clk 0:02:41.2]} 17... Rad8 {[%clk 0:00:58.4]} 18. O-O
{[%clk 0:02:38.2]} 18... c4 {[%clk 0:00:26.9]} 19. Rxd6 {[%clk 0:02:27.6]} 19...
Qxd6 {[%clk 0:00:27]} 20. Qf6 {[%clk 0:02:27.8]} 20... Nd7 {[%clk 0:00:24.4]}
21. Bxd6 {[%clk 0:02:28.2]} 21... Nxf6 {[%clk 0:00:25.6]} 22. Bxf8 {[%clk
0:02:30.1]} 22... Kxf8 {[%clk 0:00:27.4]} 23. Bxc4 {[%clk 0:02:31.6]} 23... Rd2
{[%clk 0:00:28.9]} 24. Rb1 {[%clk 0:02:32.3]} 24... Nd7 {[%clk 0:00:30.2]} 25.
Kf1 {[%clk 0:02:32.7]} 25... Nb6 {[%clk 0:00:29.1]} 26. Bb3 {[%clk 0:02:32]}
26... a5 {[%clk 0:00:21.8]} 27. Ke1 {[%clk 0:02:33.1]} 27... Rd6 {[%clk
0:00:23.3]} 28. Rd1 {[%clk 0:02:32.9]} 28... Rc6 {[%clk 0:00:24]} 29. Rd4 {[%clk
0:02:28.5]} 29... Ke7 {[%clk 0:00:23.5]} 30. f4 {[%clk 0:02:24.6]} 30... Rc5
{[%clk 0:00:24.8]} 31. Kf1 {[%clk 0:02:19.1]} 31... Rb5 {[%clk 0:00:19.3]} 32.
Kg2 {[%clk 0:02:16.7]} 32... a4 {[%clk 0:00:20.4]} 33. Bxa4 {[%clk 0:02:17.7]}
33... Nxa4 {[%clk 0:00:22.3]} 34. Rxa4 {[%clk 0:02:19.3]} 34... Rxb2 {[%clk
0:00:24]} 35. Kf3 {[%clk 0:02:10.1]} 35... Rc2 {[%clk 0:00:24.2]} 36. Ra3 {[%clk
0:02:11.6]} 36... Kd6 {[%clk 0:00:24.9]} 37. Ke3 {[%clk 0:02:11.4]} 37... f5
{[%clk 0:00:24.9]} 38. h4 {[%clk 0:02:12]} 38... h5 {[%clk 0:00:25.5]} 39. f3
{[%clk 0:02:07.1]} 39... Kd5 {[%clk 0:00:26.8]} 40. Kd3 {[%clk 0:02:07]} 40...
Rf2 {[%clk 0:00:28.1]} 41. Ra5+ {[%clk 0:02:08]} 41... Kd6 {[%clk 0:00:29.5]}
42. Ra6+ {[%clk 0:02:08.6]} 42... Kd5 {[%clk 0:00:30.4]} 43. c4+ {[%clk
0:02:09.7]} 43... Kc5 {[%clk 0:00:31.8]} 44. Ra5+ {[%clk 0:02:07.5]} 44... Kd6
{[%clk 0:00:29]} 45. Ke3 {[%clk 0:02:08.2]} 45... Rc2 {[%clk 0:00:29.4]} 46. Kd4
{[%clk 0:02:06.8]} 46... Rd2+ {[%clk 0:00:30.8]} 47. Ke3 {[%clk 0:02:03.5]}
47... Rc2 {[%clk 0:00:32.2]} 48. Kd3 {[%clk 0:02:00.1]} 48... Rf2 {[%clk
0:00:31.9]} 49. Kd4 {[%clk 0:01:47.3]} 49... Rd2+ {[%clk 0:00:32.1]} 50. Kc3
{[%clk 0:01:48.6]} 50... Rf2 {[%clk 0:00:30]} 51. Ra6+ {[%clk 0:01:48]} 51...
Kc5 {[%clk 0:00:30.9]} 52. Ra5+ {[%clk 0:01:49]} 52... Kd6 {[%clk 0:00:32.3]}
53. Kb4 {[%clk 0:01:46.5]} 53... Rxf3 {[%clk 0:00:33.3]} 54. Ra6+ {[%clk
0:01:45.9]} 54... Ke7 {[%clk 0:00:26]} 55. Ra7+ {[%clk 0:01:42]} 55... Kd6
{[%clk 0:00:18.9]} 56. c5+ {[%clk 0:01:43.5]} 56... Kc6 {[%clk 0:00:19.5]} 57.
Ra6+ {[%clk 0:01:44.5]} 57... Kd7 {[%clk 0:00:20.8]} 58. Kb5 {[%clk 0:01:44.1]}
58... Rxf4 {[%clk 0:00:19.4]} 59. Ra7+ {[%clk 0:01:45.6]} 59... Kd8 {[%clk
0:00:20.1]} 60. a4 {[%clk 0:01:42.6]} 60... Rf1 {[%clk 0:00:20.7]} 61. a5 {[%clk
0:01:43.6]} 61... f4 {[%clk 0:00:21.3]} 62. Kc6 {[%clk 0:01:43.9]} 62... Ra1
{[%clk 0:00:17.4]} 63. a6 {[%clk 0:01:44.2]} 63... f3 {[%clk 0:00:17.9]} 64. Rf7
{[%clk 0:01:37.4]} 64... Rxa6+ {[%clk 0:00:17.8]} 65. Kb7 {[%clk 0:01:38.7]}
65... Ra3 {[%clk 0:00:17.7]} 66. Kc6 {[%clk 0:01:33.8]} 66... Ra6+ {[%clk
0:00:18.6]} 67. Kb7 {[%clk 0:01:33.5]} 67... Ra3 {[%clk 0:00:19.4]} 68. Kc6
{[%clk 0:01:34.8]} 68... Ra6+ {[%clk 0:00:20.3]} 1/2-1/2